Cogmind - Beta 13 @@@ ROGUE MODE // 2024.04.01 @ 21:28:16 Player: MisterCrow Result: Destroyed by G-47 Trooper with Particle Gun Performance ------------- Evolutions (2) 1000 Regions Visited (5) 1000 Robots Destroyed (72) 360 Value Destroyed (1740) 1740 Prototype IDs (3) 60 Alien Tech Used (0) 0 Bonus (-200) -200 TOTAL SCORE: 3960 Bonus ------- Follower Combat Kills 50 Friendly Fire -250 Cogmind --------- Core Integrity 0/550 Matter 93/300 Energy 66/100 System Corruption 0% Temperature Cool (9) Movement Core (150) Ox2 Location -8/Materials Parts ------- > --- POWER (1) -------- (None) > --- PROPULSION (3) --- (None) > --- UTILITY (4) ------ Small Storage Unit Thief Drone Bay (0/3) > --- WEAPON (3) ------- (None) > --- INVENTORY (8) ---- Wheel Peak State ------------ > --- POWER ------------ Light Nuclear Core > --- PROPULSION ------- Aluminum Leg Aluminum Leg Aluminum Leg > --- UTILITY ---------- Improved Heat Sink Small Storage Unit Medium Matter Pod Hacking Suite > --- WEAPON ----------- Advanced Beam Rifle Heavy Particle Cannon Heavy Assault Rifle > --- INVENTORY -------- Wheel Thief Drone Bay Assault Rifle Minigun Flak Cannon Grenade Launcher Rocket Launcher [Rating: 24] Favorites ----------- Power Light Nuclear Core Engine Ion Engine Power Core Light Nuclear Core Propulsion Aluminum Leg Leg Aluminum Leg Utility Small Storage Unit Device Sensor Array Storage Small Storage Unit Processor Signal Interpreter Hackware Hacking Suite Protection Light Armor Plating Weapon Heavy Assault Rifle Energy Gun Medium Laser Energy Cannon Beam Cannon Ballistic Gun Heavy Assault Rifle Ballistic Cannon Flak Cannon Launcher Grenade Launcher Build | -11 -10 -10 -9 -9 -8 ------- Run | Yrd Mat Min Mat Min Mat Slots Evolved 4 | . . . 2 . 2 Power . | . . . . . . Propulsion 1 | . . . 1 . . Utility 2 | . . . 1 . 1 Weapon 1 | . . . . . 1 Parts Attached 88 | 6 9 8 29 17 19 Power 4 | 1 . 1 1 1 . Engine 2 | 1 . . 1 . . Core 2 | . . 1 . 1 . Reactor . | . . . . . . Propulsion 14 | 2 2 1 3 6 . Treads . | . . . . . . Leg 14 | 2 2 1 3 6 . Wheel . | . . . . . . Hover . | . . . . . . Flight . | . . . . . . Utility 17 | 1 2 . 8 3 3 Device 7 | . 2 . 2 1 2 Storage 3 | 1 . . 1 . 1 Processor 3 | . . . 3 . . Hackware 2 | . . . 1 1 . Protection 2 | . . . 1 1 . Artifact . | . . . . . . Weapon 53 | 2 5 6 17 7 16 Energy Gun 4 | 1 . . 1 . 2 Energy Cannon 8 | . 1 . 4 . 3 Ballistic Gun 20 | 1 2 3 6 3 5 Ballistic Cannon 5 | . . . 1 1 3 Launcher 16 | . 2 3 5 3 3 Special Weapon . | . . . . . . Impact Weapon . | . . . . . . Slashing Weapon . | . . . . . . Piercing Weapon . | . . . . . . Special Melee Weapon . | . . . . . . Unidentified Prototypes 3 | . . . 1 1 1 Parts Lost 21 | . . . 4 1 16 Power 2 | . . . 1 . 1 Propulsion 3 | . . . . . 3 Utility 7 | . . . 3 1 3 Weapon 9 | . . . . . 9 Highest Loss Streak 14 | . . . 2 1 14 To Critical Strikes . | . . . . . . Average Slot Usage (%) 94 | . 95 100 89 98 83 Engine 5 | . 14 1 5 1 . Core 5 | . . 12 3 9 3 Leg 28 | . 28 28 28 33 21 Device 7 | . 9 14 5 . 7 Storage 15 | . 14 14 11 22 17 Hackware 1 | . . . 3 . 8 Protection 3 | . . . 7 8 . Energy Gun 1 | . 6 . . . 1 Energy Cannon 7 | . 7 14 8 . 7 Ballistic Gun 11 | . 12 4 10 20 9 Launcher 3 | . 1 9 1 1 2 Naked Turns . | . . . . . . Heaviest Build 25 | 14 16 18 23 23 25 Greatest Support 30 | 20 20 20 30 30 30 Greatest Overweight (x) 6 | 1 . . 1 . 6 Average Overweight (x) . | . . . . . . Largest Inventory Capacity 8 | 8 8 8 8 8 8 Average Capacity 7 | 7 8 8 8 8 8 Most Carried 8 | 7 8 8 8 8 8 Average Carried 6 | 2 5 7 6 7 6 Final Capacity 8 | 8 8 8 8 8 8 Final Carried 8 | 2 8 8 7 7 1 Class Distribution -------------------- 63% | Scavenger-Mutant 27% | Mutant 8% | Scavenger-Gunner Dominant Class ---------------- Mutant | -10/Materials Scavenger-Mutant | -10/Mines Scavenger-Mutant | -9/Materials Scavenger-Mutant | -9/Mines Scavenger-Gunner | -8/Materials Resources | -11 -10 -10 -9 -9 -8 ----------- Run | Yrd Mat Min Mat Min Mat Matter Collected 1628 | 234 194 138 496 455 111 Remotely . | . . . . . . Salvage Created 1969 | . 438 264 521 379 367 Parts 149 | . 33 28 36 29 23 Haulers Intercepted . | . . . . . . Recyclers Shooed 2 | . 2 . . . . Parts Field Recycled . | . . . . . . Retrieved Matter . | . . . . . . Parts Self-Destructed . | . . . . . . Prevented . | . . . . . . Kills | -11 -10 -10 -9 -9 -8 ------- Run | Yrd Mat Min Mat Min Mat Combat Hostiles Destroyed 45 | . 7 13 8 9 8 Guns 9 | . . . 3 4 2 Cannons 12 | . 4 3 2 . 3 AOE 23 | . 3 9 3 5 3 Classes Destroyed 9 | . 6 . 2 1 . Worker 7 | . 2 1 2 2 . Builder 4 | . . . 1 1 2 Tunneler 4 | . 1 . . 3 . Recycler 6 | . 3 1 2 . . Drone 1 | . . . . 1 . Watcher 6 | . 2 . 1 . 3 Swarmer 14 | . 3 11 . . . Grunt 25 | . 4 2 3 9 7 Sentry 6 | . . . 5 . 1 Best Kill Streak 8 | . 8 4 4 7 7 Combat Bots Only 6 | . 4 3 3 4 6 Max Kills in Single Turn 3 | . 3 3 2 3 2 Gunslinging . | . . . . . . Exploded 3 | . 2 3 2 1 2 Melee . | . . . . . . Uniques/NPCs Destroyed . | . . . . . . Combat | -11 -10 -10 -9 -9 -8 -------- Run | Yrd Mat Min Mat Min Mat Hostile Shots Fired 302 | . 30 33 53 21 165 Missed 83 | . 12 11 13 5 42 Damage Taken 3280 | . 232 245 557 299 1947 Core 856 | . 29 76 110 87 554 Absorbed by Shields . | . . . . . . Regen/Repaired (Parts) 141 | . . . 141 . . Core Remaining (%) 69 | 100 . 58 . 50 . Volleys Fired 139 | . 32 15 38 28 26 Largest 3 | . 2 2 2 2 3 Hottest 144 | . 90 93 104 56 144 Shots Fired 276 | . 60 29 76 51 60 Gun 137 | . 36 5 32 40 24 Cannon 100 | . 21 15 36 1 27 Launcher 39 | . 3 9 8 10 9 Special . | . . . . . . Kinetic 145 | . 25 5 40 41 34 Thermal 92 | . 32 15 28 . 17 Explosive 39 | . 3 9 8 10 9 Electromagnetic . | . . . . . . Robot Hit Streak 15 | . 5 3 15 6 7 Robot Miss Streak 5 | . 3 3 3 5 3 Penetration Max . | . . . . . . Secondary Targets . | . . . . . . Shots Hit Robots 149 | . 26 10 54 25 34 Core Hits 113 | . 21 19 23 25 25 Critical Kills 2 | . . 1 . . 1 Critical Parts Destroyed . | . . . . . . Critical Strikes 3 | . . 1 . . 2 Burn 1 | . . . . . 1 Meltdown 2 | . . 1 . . 1 Melee Attacks . | . . . . . . Impact . | . . . . . . Slashing . | . . . . . . Piercing . | . . . . . . Sneak Attacks . | . . . . . . Combat Hostiles . | . . . . . . Follow-up Attacks . | . . . . . . Damage Inflicted 4856 | 4 902 623 1052 1126 1149 Guns 1117 | . 196 15 322 348 236 Cannons 1156 | . 207 139 444 . 366 Explosions 2512 | . 494 460 259 752 547 Melee . | . . . . . . Ramming 71 | 4 5 9 27 26 . Kinetic 1298 | . 133 15 450 348 352 Thermal 1289 | . 584 139 316 . 250 Explosive 2198 | . 180 460 259 752 547 Electromagnetic . | . . . . . . Impact . | . . . . . . Slashing . | . . . . . . Piercing . | . . . . . . Highest Corruption 1 | . . . 1 1 . Average Corruption 1 | . . . 1 1 . Corruption Purged . | . . . . . . Corruption Blocked . | . . . . . . Effects 3 | . . . 1 2 . Message Errors 2 | . . . . 2 . Data Loss (minor) 1 | . . . 1 . . Overload Shots . | . . . . . . Overflow Damage 186 | . 134 30 13 9 . Projectiles 13 | . . . 13 . . Explosions 173 | . 134 30 . 9 . Melee . | . . . . . . Knockbacks 7 | 1 . . 2 . 4 Impact 1 | 1 . . . . . Kinetic 5 | . . . 2 . 3 Secondary 1 | . . . . . 1 Self-Inflicted Damage 228 | . . 54 18 123 33 Shots 9 | . . 2 1 5 1 Rammed . | . . . . . . Targets Rammed 17 | 2 4 2 6 3 . Kicked 17 | 2 4 2 6 3 . Crushed . | . . . . . . Highest Temperature 183 | . 174 183 147 24 164 Average Temperature 44 | . 41 55 38 11 57 Received Heat Transfer 1584 | . 111 33 192 96 1152 Siege Activations . | . . . . . . Robots Corrupted . | . . . . . . Combat Hostiles . | . . . . . . Parts Fried . | . . . . . . Impact Corruptions . | . . . . . . Robots Melted 2 | . . 1 . . 1 Combat Hostiles 1 | . . 1 . . . Parts Melted 6 | . . . 2 . 4 Heat Transferred 2322 | . 879 296 666 . 481 Parts Sabotaged . | . . . . . . Parts Stolen . | . . . . . . Parts Stripped . | . . . . . . Power Chain Reactions . | . . . . . . Alert | -11 -10 -10 -9 -9 -8 ------- Run | Yrd Mat Min Mat Min Mat Peak Influence 341 | . 262 341 311 217 309 Initial 121 | . . 102 112 121 84 Average 169 | . 107 236 206 158 145 Maximum Alert Level 1 | . 1 1 1 1 1 Low Security (%) 52 | 100 66 19 46 55 79 Level 1 47 | . 33 80 53 44 20 Level 2 . | . . . . . . Level 3 . | . . . . . . Level 4 . | . . . . . . Level 5 . | . . . . . . High Security . | . . . . . . Max Security . | . . . . . . Squads Dispatched 7 | . 1 . 3 . 3 Investigation 3 | . . . 2 . 1 Extermination . | . . . . . . Reinforcement 3 | . 1 . 1 . 1 Assault . | . . . . . . Garrison 1 | . . . . . 1 Intercept . | . . . . . . Searches Triggered . | . . . . . . Construction Impeded 1 | . . . . . 1 Haulers Reinforced . | . . . . . . Active Scanning Responses . | . . . . . . Cargo Convoy Interrupts . | . . . . . . Stealth | -11 -10 -10 -9 -9 -8 --------- Run | Yrd Mat Min Mat Min Mat Distress Signals 3 | . . . 1 . 2 Communications Jammed . | . . . . . . Distress Signals . | . . . . . . Times Spotted 72 | . 13 13 13 15 18 Peak Tracking Total 9 | . 4 3 3 4 9 Tactical Retreats 4 | . 1 . . . 3 Traps | -11 -10 -10 -9 -9 -8 ------- Run | Yrd Mat Min Mat Min Mat Traps Triggered 1 | . . . 1 . . Indirectly . | . . . . . . Trap Hack Attempts . | . . . . . . Triggered . | . . . . . . Disarmed . | . . . . . . Reprogrammed . | . . . . . . Reused . | . . . . . . Traps Extracted . | . . . . . . Installed . | . . . . . . Triggered . | . . . . . . Machines | -11 -10 -10 -9 -9 -8 ---------- Run | Yrd Mat Min Mat Min Mat Machines Disabled 13 | . 5 . 1 . 7 Max in Single Turn 3 | . 3 . 1 . 2 Machines Repaired . | . . . . . . Machines Dismantled . | . . . . . . Machines Sabotaged . | . . . . . . Overloaded Fab Kills . | . . . . . . Hacking | -11 -10 -10 -9 -9 -8 --------- Run | Yrd Mat Min Mat Min Mat Machines Accessed 9 | . 3 . 3 1 2 Terminals 7 | . 3 . 2 . 2 Fabricators . | . . . . . . Repair Stations 1 | . . . 1 . . Recycling Units . | . . . . . . Scanalyzers . | . . . . . . Garrison Access . | . . . . . . Total Hacks 24 | . 9 . 9 1 5 Successful 18 | . 6 . 7 1 4 Failed 6 | . 3 . 2 . 1 Catastrophic 1 | . . . . . 1 Database Lockouts . | . . . . . . Manual 1 | . 1 . . . . Terminals 18 | . 9 . 4 . 5 Fabricators . | . . . . . . Repair Stations 5 | . . . 5 . . Recycling Units . | . . . . . . Scanalyzers . | . . . . . . Garrison Access . | . . . . . . Terminal Hacks 14 | . 6 . 3 1 4 Open Door 1 | . . . . 1 . Branch Access Points 1 | . . . 1 . . Unreport Threat 2 | . 1 . . . 1 Locate Traps 1 | . 1 . . . . Dispatch Records 2 | . 1 . . . 1 Maintenance Status 1 | . 1 . . . . Surveillance Status 1 | . 1 . . . . Transport Status 1 | . . . . . 1 Hauler Manifests 1 | . . . 1 . . Registered Components 1 | . . . . . 1 Zone Layout 2 | . 1 . 1 . . Fabricator Hacks . | . . . . . . Repair Station Hacks 4 | . . . 4 . . Scan Component 2 | . . . 2 . . Repair 2 | . . . 2 . . Recycling Unit Hacks . | . . . . . . Scanalyzer . | . . . . . . Garrison Access Hacks . | . . . . . . Unauthorized Hacks . | . . . . . . Terminals . | . . . . . . Fabricators . | . . . . . . Repair Stations . | . . . . . . Recycling Units . | . . . . . . Scanalyzers . | . . . . . . Garrison Access . | . . . . . . Data Cores Recovered . | . . . . . . Used . | . . . . . . Hacking Detections 6 | . 3 . 2 . 1 Full Trace Events 3 | . . . 2 . 1 Feedback Events . | . . . . . . Feedback Blocked . | . . . . . . Robot Schematics Acquired . | . . . . . . Robots Built . | . . . . . . Authchips . | . . . . . . Time . | . . . . . . Total Robot Build Rating . | . . . . . . Part Schematics Acquired . | . . . . . . Parts Built . | . . . . . . Authchips . | . . . . . . Time . | . . . . . . Total Part Build Rating . | . . . . . . Parts Repaired 2 | . . . 2 . . Time 52 | . . . 52 . . Parts Recycled . | . . . . . . Recycled Matter . | . . . . . . Retrieved Matter . | . . . . . . Retrieved Components . | . . . . . . Parts Scanalyzed . | . . . . . . Part Schematics Acquired . | . . . . . . Parts Damaged . | . . . . . . Bothacking | -11 -10 -10 -9 -9 -8 ------------ Run | Yrd Mat Min Mat Min Mat Used RIF Installer . | . . . . . . Robots Hacked . | . . . . . . Non-combat . | . . . . . . Combat . | . . . . . . Robot Hacks Applied . | . . . . . . Relay Couplers Released . | . . . . . . Fabnet Peak Effective % . | . . . . . . Robots Rewired . | . . . . . . Allies Hacked . | . . . . . . Hacks Repelled . | . . . . . . Allies | -11 -10 -10 -9 -9 -8 -------- Run | Yrd Mat Min Mat Min Mat Total Allies 1 | . . . . 1 . Largest Group 1 | . . . . 1 . Highest-Rated Group 31 | . . . . 31 . Highest-Rated Ally 31 | . . . . 31 . Total Orders . | . . . . . . Ally Attacks 16 | . . . . 16 . Total Damage 136 | . . . . 136 . Kills 2 | . . . . 2 . Allies Corrupted . | . . . . . . Allies Melted . | . . . . . . Intel | -11 -10 -10 -9 -9 -8 ------- Run | Yrd Mat Min Mat Min Mat Robot Analysis Total . | . . . . . . Derelict Logs Recovered 2 | . . 1 . 1 . Drone Launches 4 | . . . . 4 . Drone Recoveries 1 | . . . . 1 . Exploration | -11 -10 -10 -9 -9 -8 ------------- Run | Yrd Mat Min Mat Min Mat Turns Passed 3207 | 65 690 633 785 676 358 Spaces Moved 1852 | 48 459 474 408 323 140 Core 36 | 30 . . . . 6 Treads . | . . . . . . Legs 1816 | 18 459 474 408 323 134 Wheels . | . . . . . . Hover . | . . . . . . Flight . | . . . . . . Fastest Speed 50 | 50 120 120 120 120 120 Average Speed 119 | 80 120 120 121 120 128 Slowest Speed 350 | 120 120 120 190 120 350 Overloaded Moves . | . . . . . . Propulsion Burnouts . | . . . . . . Robots Hopped . | . . . . . . Cave-ins Triggered . | . . . . . . Exploration Rate (%) 43 | 3 70 81 39 49 17 Regions Visited 5 Branch Regions 2 Pre-discovered Areas 2 | . . 1 . 1 . Known Exits Taken 1 | . . . 1 . . Unknown Exits Taken 4 | 1 1 1 . 1 . Scrap Searched 2 | . . 1 . 1 . Spaces Dug 22 | . . . . 11 11 Terrain Destroyed 293 | . 17 70 81 78 47 Melee . | . . . . . . Projectile 5 | . . . . . 5 AOE 288 | . 17 70 81 78 42 Terrain Rammed . | . . . . . . Walls Destroyed . | . . . . . . Machines Disabled . | . . . . . . Actions | -11 -10 -10 -9 -9 -8 --------- Run | Yrd Mat Min Mat Min Mat Total 2559 | 73 538 507 615 559 267 Wait 407 | 11 21 4 115 181 75 Move 1847 | 47 458 473 407 322 140 Hop . | . . . . . . Pick Up 38 | 7 9 2 14 1 5 Fast Attach 1 | 1 . . . . . Attach 27 | 5 1 . 10 1 10 Detach . | . . . . . . Swap 60 | . 8 8 19 16 9 Drop 23 | . 5 3 6 7 2 Fire 139 | . 32 15 38 28 26 Melee . | . . . . . . Ram . | . . . . . . Kick 17 | 2 4 2 6 3 . Crush . | . . . . . . Escape Stasis . | . . . . . . Rewire . | . . . . . . Trap . | . . . . . . Miscellaneous . | . . . . . . Route ------- -11/Scrapyard -10/Materials (discovered 3 exits: *Mat / [*Min x2]) -10/Mines (discovered 2 exits: *Mat x2) -9/Materials (discovered 2 exits: *Mat / *Min) -9/Mines (discovered 3 exits: *Mat x2 / [*Exi]) -8/Materials History --------- Turn | Location | Event 6 | -11/Scrapyard | Discovered new exit (range 15) 66 | -11/Scrapyard | Entered Materials 137 | -10/Materials | Discovered new exit (range 16) 260 | -10/Materials | Discovered new exit (range 15) 305 | -10/Materials | Discovered new exit (range 9) 311 | -10/Materials | Build established: Mutant 756 | -10/Materials | Entered Mines 766 | -10/Mines | Met a Derelict bent on vengeance 772 | -10/Mines | Learned location of Zion (-7) 913 | -10/Mines | Found a hidden stash of uninstalled traps 1105 | -10/Mines | Build established: Scavenger-Mutant 1240 | -10/Mines | Received a Rocket Launcher from a helpful Derelict 1259 | -10/Mines | Discovered new exit (range 8) 1344 | -10/Mines | Discovered new exit (range 4) 1389 | -10/Mines | Entered Materials 1389 | -9/Materials | Evolved 2 slots: Propulsion x1, Utility x1 1708 | -9/Materials | Repaired Aluminum Leg 1736 | -9/Materials | Repaired Aluminum Leg 1914 | -9/Materials | Discovered new exit (range 13) 2153 | -9/Materials | Identified exit to Mines 2174 | -9/Materials | Entered Mines 2177 | -9/Mines | Received a Mining Laser from a helpful Derelict 2227 | -9/Mines | Found the Drone Emporium 2232 | -9/Mines | Found Prototype Device 2233 | -9/Mines | Identified Thief Drone Bay 2410 | -9/Mines | Excavation squad dispatched 2410 | -9/Mines | A large section of the Mines collapsed 2660 | -9/Mines | Excavation squad dispatched 2734 | -9/Mines | Discovered new exit (range 13) 2803 | -9/Mines | Discovered new exit (range 15) 2820 | -9/Mines | Deemed a non-threat by the Exiles lab entrance 2820 | -9/Mines | Discovered new exit (range 5) 2850 | -9/Mines | Entered Materials 2850 | -8/Materials | Evolved 2 slots: Utility x1, Weapon x1 3139 | -8/Materials | Garrison activated, responded to threat 3172 | -8/Materials | Core integrity fell below 50% 3185 | -8/Materials | Core integrity fell below 20% 3208 | -8/Materials | Destroyed by G-47 Trooper with Particle Gun Last Messages --------------- Med. Matter Pod destroyed. Critical hit (Burn: +37). U-05 Engineer builds a Wall. Assault Rifle destroyed. Critical hit (Burn: +37). G-47 Trooper knocked back. Critical hit (Burn: +37). Y-45 Defender destroyed. R-06 Scavenger collects Lgt. Ion Engine. G-47 Trooper destroyed. Hvy. Assault Rifle destroyed. R-06 Scavenger collects Com. Wheel. Hacking Suite destroyed. R-06 Scavenger collects Com. Wheel. W-25 Informer sends out distress signal. Flak Cannon destroyed. Hvy. Particle Cannon destroyed. Critical hit (Burn: +37). R-06 Scavenger collects Aluminum Leg. Critical hit (Burn: +37). Map ----- +----------------------------------------------------+ | #???????# # ## ##?????????????????????????????? | | !#???????# # # #?????????????????????????????? | | ##???????# # # ##??????????? ??????????????? | | #????????# ## ################ ????????????? | | ?????????# ### #??????????? | | ?????????### #???!??????? | | ????######## #??????????? | | ????# + T ^ +??????????? | | ????# T # #??????????? | | ????# # #??????????? | | ????# !# % """ """ ???????????? | | ????# # " """ """ #???????????? | | ????# # "" """ """ #???????????? | | ????######## #???????????? | | ???????????# % #???????????? | | ?????? "" """ #???????????? | | ????? "" " " """ #???????????? | | ?????? """ """ """ #???????????? | | ????? !! #???????????? | | ?????? !! #???????????? | | ?????? ########################+#+#######?????? | | ??????? ?????????????????#! ! [ #?????? | | ??????????????? ???????# = #?????? | | ??????????????? G????# *%* " """ #?????? | | ?????????????"" "" ### =!=!=% """ """ #?????? | | ?????????????"" /g@ *%%* " """ ??????? | | ?????????????"" g w ###% %=[! r """ """???????? | | ??????????? ??????# == g % #?????? | | ??????????? ??????????#################???????? | | ????????????????????????????#####????????????????? | | ?????????????????????????????????????????????????? | | ?????????????????????????????????????????????????? | | ?????????????????????????????????????????????????? | | ?????????????????????????????????????????????????? | | ?????????????????????????????????????????????????? | | ?????????????????????????????????????????????????? | | ?????????????????????????????????????????????????? | | ?????????????????????????????????????????????????? | | ?????????????????????????????????????????????????? | | ?????????????????????????????????????????????????? | | ?????????????????????????????????????????????????? | | ?????????????????????????????????????????????????? | | ?????????????????????????????????????????????????? | | ?????????????????????????????????????????????????? | | ?????????????????????????????????????????????????? | | ?????????????????????????????????????????????????? | | ?????????????????????????????????????????????????? | | ?????????????????????????????????????????????????? | | ?????????????????????????????????????????????????? | | ?????????????????????????????????????????????????? | +----------------------------------------------------+ Best States ------------- Heat Dissipation 45 Energy Generation 14 Energy Capacity 250 Matter Stores 390 Matter Capacity 400 Sight Range 18 Robot Scan Range 14 Terrain Scan Density 85 Armor Coverage 150 Evasion (%) 55 Offensive Hacking 10 Item Schematics ----------------- None Robot Schematics ------------------ None Fabricated ------------ Nothing Alien Tech Used ----------------- None Achievements -------------- Backstab It's Just You Troublemaker Challenges ------------ None Game ------ Seed FlyingTacticalReplicator Manual? 0 Play Time 01:11:03 Cumulative 4.2 hours Start 2024.04.01 @ 20:14:40 End 2024.04.01 @ 21:28:16 Sessions 1 Manual Loads 0 Difficulty Rogue Special Mode None Game No. 7 Rogue 7 Adventurer 0 Explorer 0 Win Type - Total 0 Types 0/0/0/0/0/0/0/0/0 Lore% 2 Gallery% 7 Achievement% 10 Wizard Run 0 Options --------- Layout 1 ASCII 0 Keyboard 0 Movement Vi Keybinds 0 Fullscreen 2 Font 32/SmallcapsGlow Map View 50x35 Zoom Use 1% Tactical HUD 0 Map Filters NONE Filters NONE Steam 1 RUN: 1c40e177-1fd8-478e-9e95-2f74f6feac7c